[Event "*** Titled Tuesday Blitz"]
[Site "Chess.com"]
[Date "2020.04.28"]
[Round "2"]
[White "Anna_ChessMate"]
[Black "obliviate12"]
[Result "0-1"]
[WhiteElo "2534"]
[BlackElo "2814"]
[TimeControl "180+1"]
[EndTime "10:18:59 PDT"]
[Termination "obliviate12 won by resignation"]

1. d4 {[%clk 0:03:00.5]} 1... Nf6 {[%clk 0:02:57.6]} 2. c4 {[%clk 0:03:00.6]}
2... e6 {[%clk 0:02:56.4]} 3. Nf3 {[%clk 0:03:00.4]} 3... d5 {[%clk 0:02:53.6]}
4. Nc3 {[%clk 0:02:59.7]} 4... Bb4 {[%clk 0:02:52.7]} 5. cxd5 {[%clk 0:02:58]}
5... exd5 {[%clk 0:02:52.2]} 6. Bf4 {[%clk 0:02:58.4]} 6... Ne4 {[%clk
0:02:47.7]} 7. Rc1 {[%clk 0:02:56.6]} 7... Nc6 {[%clk 0:02:47.8]} 8. Ne5 {[%clk
0:02:35.6]} 8... Nxe5 {[%clk 0:02:09.3]} 9. Bxe5 {[%clk 0:02:36.5]} 9... O-O
{[%clk 0:02:09.3]} 10. e3 {[%clk 0:02:32.8]} 10... c6 {[%clk 0:01:58.6]} 11. Bd3
{[%clk 0:02:32]} 11... Nxc3 {[%clk 0:01:44.3]} 12. bxc3 {[%clk 0:02:31.1]} 12...
Ba3 {[%clk 0:01:44.7]} 13. Rb1 {[%clk 0:02:26.1]} 13... b5 {[%clk 0:01:44.8]}
14. O-O {[%clk 0:02:25.7]} 14... Re8 {[%clk 0:01:36.6]} 15. e4 {[%clk
0:02:16.1]} 15... Be6 {[%clk 0:01:33.7]} 16. exd5 {[%clk 0:02:13]} 16... Bxd5
{[%clk 0:01:31.9]} 17. Qg4 {[%clk 0:02:01.8]} 17... Bf8 {[%clk 0:01:27.8]} 18.
a4 {[%clk 0:01:53.3]} 18... a6 {[%clk 0:01:27.6]} 19. Rfe1 {[%clk 0:01:42.6]}
19... bxa4 {[%clk 0:01:11.3]} 20. c4 {[%clk 0:01:42.3]} 20... Be6 {[%clk
0:01:10.8]} 21. Qe4 {[%clk 0:01:39.7]} 21... g6 {[%clk 0:01:04.7]} 22. Qxc6
{[%clk 0:01:39.8]} 22... a3 {[%clk 0:01:00.5]} 23. d5 {[%clk 0:01:39.5]} 23...
Bd7 {[%clk 0:00:44.6]} 24. Qb7 {[%clk 0:01:38.2]} 24... Rxe5 {[%clk 0:00:28]}
25. Rxe5 {[%clk 0:01:37.6]} 25... a2 {[%clk 0:00:28.1]} 26. Rc1 {[%clk
0:01:16.5]} 26... Bg7 {[%clk 0:00:26.1]} 27. Ree1 {[%clk 0:01:17]} 27... Rb8
{[%clk 0:00:22.1]} 28. Qa7 {[%clk 0:01:07]} 28... Bb2 {[%clk 0:00:20]} 29. Rcd1
{[%clk 0:01:01.5]} 29... Ba4 {[%clk 0:00:19]} 30. Ra1 {[%clk 0:00:49.7]} 30...
Bxa1 {[%clk 0:00:18.9]} 31. Rxa1 {[%clk 0:00:50.6]} 31... Bb3 {[%clk 0:00:19.8]}
32. h3 {[%clk 0:00:46]} 32... a5 {[%clk 0:00:19.7]} 33. Qd4 {[%clk 0:00:35.4]}
33... a4 {[%clk 0:00:19.8]} 34. Be4 {[%clk 0:00:33.8]} 34... Rb4 {[%clk
0:00:19.6]} 35. Bd3 {[%clk 0:00:31.6]} 35... Qd6 {[%clk 0:00:16.7]} 36. Re1
{[%clk 0:00:31.4]} 36... Rb8 {[%clk 0:00:14.7]} 37. c5 {[%clk 0:00:30.7]} 37...
Qxd5 {[%clk 0:00:14.5]} 38. Qc3 {[%clk 0:00:31.2]} 38... Rc8 {[%clk 0:00:13.9]}
39. Ba6 {[%clk 0:00:18.4]} 39... Qxc5 {[%clk 0:00:13.8]} 40. Qf6 {[%clk
0:00:15.2]} 40... Rf8 {[%clk 0:00:08.5]} 41. Bd3 {[%clk 0:00:13.1]} 41... Qb4
{[%clk 0:00:07.8]} 42. Rc1 {[%clk 0:00:10.7]} 42... Be6 {[%clk 0:00:07.7]} 43.
Qa1 {[%clk 0:00:08.5]} 43... Qd2 {[%clk 0:00:07.3]} 44. Bf1 {[%clk 0:00:07]}
44... a3 {[%clk 0:00:07.5]} 45. Rd1 {[%clk 0:00:07.2]} 45... Qb2 {[%clk
0:00:07.6]} 46. Re1 {[%clk 0:00:06.8]} 46... Rb8 {[%clk 0:00:07.6]} 47. Qd1
{[%clk 0:00:06.2]} 47... Qb1 {[%clk 0:00:07.1]} 48. Qd6 {[%clk 0:00:06.1]} 48...
Qxe1 {[%clk 0:00:06.4]} 49. Qxb8+ {[%clk 0:00:05.7]} 49... Kg7 {[%clk
0:00:07.3]} 0-1

[Event "*** Titled Tuesday Blitz"]
[Site "Chess.com"]
[Date "2020.04.28"]
[Round "2"]
[White "serhanberat_ozdemir"]
[Black "MatijaOlimpiakosIvic"]
[Result "0-1"]
[WhiteElo "2514"]
[BlackElo "2771"]
[TimeControl "180+1"]
[EndTime "10:19:00 PDT"]
[Termination "MatijaOlimpiakosIvic won by resignation"]

1. e4 {[%clk 0:03:00.8]} 1... c5 {[%clk 0:02:59.7]} 2. Nf3 {[%clk 0:03:00.3]}
2... g6 {[%clk 0:03:00.2]} 3. d4 {[%clk 0:02:59.9]} 3... cxd4 {[%clk 0:03:01.1]}
4. Qxd4 {[%clk 0:03:00.8]} 4... Nf6 {[%clk 0:03:01.2]} 5. e5 {[%clk 0:03:01.3]}
5... Nc6 {[%clk 0:03:01.5]} 6. Qa4 {[%clk 0:03:01.5]} 6... Nd5 {[%clk
0:03:01.7]} 7. Qe4 {[%clk 0:03:01.8]} 7... Ndb4 {[%clk 0:03:01.9]} 8. Bb5 {[%clk
0:02:59.2]} 8... Bg7 {[%clk 0:03:01.5]} 9. a3 {[%clk 0:02:46.2]} 9... Na6 {[%clk
0:03:00.7]} 10. Nc3 {[%clk 0:02:39.4]} 10... O-O {[%clk 0:02:59.8]} 11. Bf4
{[%clk 0:02:34.1]} 11... Nc7 {[%clk 0:02:59.2]} 12. Bxc6 {[%clk 0:02:08.5]}
12... dxc6 {[%clk 0:02:53.9]} 13. Rd1 {[%clk 0:02:05.3]} 13... Qe8 {[%clk
0:02:53.8]} 14. Qe3 {[%clk 0:02:02.7]} 14... b6 {[%clk 0:02:42.7]} 15. Bh6
{[%clk 0:02:00.9]} 15... Ba6 {[%clk 0:02:38.4]} 16. h4 {[%clk 0:01:59.7]} 16...
Rd8 {[%clk 0:02:28.8]} 17. Rxd8 {[%clk 0:01:55.4]} 17... Qxd8 {[%clk 0:02:28.9]}
18. h5 {[%clk 0:01:54.8]} 18... Nd5 {[%clk 0:01:45.1]} 19. Nxd5 {[%clk
0:01:40.4]} 19... Qxd5 {[%clk 0:01:46]} 20. Bxg7 {[%clk 0:01:32.5]} 20... Rd8
{[%clk 0:01:35.2]} 21. Nd2 {[%clk 0:00:59.7]} 21... Qxg2 {[%clk 0:01:21.9]} 22.
Qf3 {[%clk 0:00:13]} 22... Qxf3 {[%clk 0:01:20.7]} 23. Nxf3 {[%clk 0:00:13.9]}
23... Kxg7 {[%clk 0:01:20.7]} 24. hxg6 {[%clk 0:00:14.8]} 24... hxg6 {[%clk
0:01:19.5]} 25. Rh4 {[%clk 0:00:15.7]} 25... Bb7 {[%clk 0:01:09.5]} 26. Ke2
{[%clk 0:00:13.4]} 26... c5 {[%clk 0:01:09.4]} 27. Nd2 {[%clk 0:00:09.6]} 27...
f6 {[%clk 0:01:04]} 28. exf6+ {[%clk 0:00:02.9]} 28... exf6 {[%clk 0:01:04.9]}
29. c4 {[%clk 0:00:01.1]} 29... g5 {[%clk 0:01:02.9]} 30. Rh3 {[%clk 0:00:01.2]}
30... Re8+ {[%clk 0:00:59]} 31. Re3 {[%clk 0:00:02.1]} 31... Rxe3+ {[%clk
0:00:58]} 32. Kxe3 {[%clk 0:00:03]} 32... f5 {[%clk 0:00:54.9]} 33. b4 {[%clk
0:00:03.9]} 33... cxb4 {[%clk 0:00:47.9]} 34. axb4 {[%clk 0:00:03.9]} 34... a5
{[%clk 0:00:48]} 35. bxa5 {[%clk 0:00:03.8]} 35... bxa5 {[%clk 0:00:48.9]} 36.
c5 {[%clk 0:00:04.4]} 36... Kf6 {[%clk 0:00:44.5]} 37. Kd4 {[%clk 0:00:04.6]}
37... f4 {[%clk 0:00:37.8]} 38. Nc4 {[%clk 0:00:04.8]} 38... a4 {[%clk
0:00:35.5]} 39. Na3 {[%clk 0:00:02.9]} 39... Bc6 {[%clk 0:00:33.7]} 40. Nc2
{[%clk 0:00:02.5]} 40... g4 {[%clk 0:00:32.9]} 41. Nb4 {[%clk 0:00:03.4]} 41...
a3 {[%clk 0:00:17.5]} 42. Kc3 {[%clk 0:00:02.4]} 42... g3 {[%clk 0:00:17.4]} 43.
fxg3 {[%clk 0:00:03.3]} 43... fxg3 {[%clk 0:00:18.3]} 44. Nxc6 {[%clk 0:00:04]}
44... g2 {[%clk 0:00:18.1]} 45. Nd4 {[%clk 0:00:02.6]} 45... g1=Q {[%clk
0:00:17.8]} 46. c6 {[%clk 0:00:03]} 46... Qc1+ {[%clk 0:00:17.8]} 47. Kb4 {[%clk
0:00:03.4]} 47... Qb2+ {[%clk 0:00:17.4]} 48. Nb3 {[%clk 0:00:03.9]} 48... a2
{[%clk 0:00:13]} 49. c7 {[%clk 0:00:04.1]} 49... a1=Q {[%clk 0:00:13.4]} 50.
c8=Q {[%clk 0:00:04.6]} 50... Qaa3+ {[%clk 0:00:13.7]} 51. Kb5 {[%clk
0:00:04.9]} 51... Qaxb3+ {[%clk 0:00:13.2]} 52. Kc6 {[%clk 0:00:05.7]} 52...
Qc4+ {[%clk 0:00:12.6]} 0-1

[Event "*** Titled Tuesday Blitz"]
[Site "Chess.com"]
[Date "2020.04.28"]
[Round "2"]
[White "wonderfultime"]
[Black "dmosesov"]
[Result "1-0"]
[WhiteElo "2934"]
[BlackElo "2574"]
[TimeControl "180+1"]
[EndTime "10:19:01 PDT"]
[Termination "wonderfultime won by checkmate"]

1. d4 {[%clk 0:03:00.9]} 1... Nf6 {[%clk 0:03:00.1]} 2. Nf3 {[%clk 0:03:00.2]}
2... b6 {[%clk 0:02:57.8]} 3. Bf4 {[%clk 0:02:58.9]} 3... Bb7 {[%clk 0:02:58.3]}
4. e3 {[%clk 0:02:59.4]} 4... g6 {[%clk 0:02:58.9]} 5. h3 {[%clk 0:02:58.9]}
5... Bg7 {[%clk 0:02:59.3]} 6. Be2 {[%clk 0:02:59.5]} 6... O-O {[%clk
0:02:59.9]} 7. O-O {[%clk 0:03:00.1]} 7... d6 {[%clk 0:03:00.1]} 8. a4 {[%clk
0:03:00.1]} 8... c5 {[%clk 0:02:53.9]} 9. c3 {[%clk 0:02:57.2]} 9... Nbd7 {[%clk
0:02:50.3]} 10. a5 {[%clk 0:02:56.2]} 10... bxa5 {[%clk 0:02:48]} 11. Qa4 {[%clk
0:02:53.5]} 11... Nd5 {[%clk 0:02:34.9]} 12. Bg3 {[%clk 0:02:50.8]} 12... N5b6
{[%clk 0:02:34.7]} 13. Qxa5 {[%clk 0:02:48.9]} 13... Qc7 {[%clk 0:02:11.4]} 14.
Nbd2 {[%clk 0:02:38]} 14... Rfc8 {[%clk 0:02:09.9]} 15. Bd3 {[%clk 0:02:29.5]}
15... c4 {[%clk 0:01:58]} 16. Bc2 {[%clk 0:02:27.5]} 16... e5 {[%clk 0:01:55.9]}
17. Rfd1 {[%clk 0:02:21]} 17... f5 {[%clk 0:01:50.2]} 18. dxe5 {[%clk
0:02:17.5]} 18... dxe5 {[%clk 0:01:48.4]} 19. Nf1 {[%clk 0:02:05.5]} 19... Bxf3
{[%clk 0:01:41.5]} 20. gxf3 {[%clk 0:02:04.3]} 20... Nc5 {[%clk 0:01:42.1]} 21.
Nd2 {[%clk 0:01:52.6]} 21... Qf7 {[%clk 0:01:33.3]} 22. Kg2 {[%clk 0:01:42.1]}
22... Rc7 {[%clk 0:01:10.7]} 23. Qb5 {[%clk 0:01:19.2]} 23... Rf8 {[%clk
0:00:53]} 24. b4 {[%clk 0:01:09.4]} 24... Ncd7 {[%clk 0:00:23.6]} 25. Ra3 {[%clk
0:01:07]} 25... f4 {[%clk 0:00:22.1]} 26. exf4 {[%clk 0:01:04.2]} 26... exf4
{[%clk 0:00:23]} 27. Bh2 {[%clk 0:01:04.7]} 27... Qe7 {[%clk 0:00:19.7]} 28. Ne4
{[%clk 0:01:01.1]} 28... Rf5 {[%clk 0:00:18.3]} 29. Qa6 {[%clk 0:01:00]} 29...
Nb8 {[%clk 0:00:17.5]} 30. Kh1 {[%clk 0:00:35.6]} 30... Nxa6 {[%clk 0:00:17.4]}
31. Rxa6 {[%clk 0:00:36.5]} 31... h5 {[%clk 0:00:16.7]} 32. Rg1 {[%clk
0:00:31.5]} 32... Rf8 {[%clk 0:00:17.2]} 33. Rxg6 {[%clk 0:00:31.3]} 33... Nd7
{[%clk 0:00:12.4]} 34. Rae6 {[%clk 0:00:29.4]} 34... Qd8 {[%clk 0:00:11.5]} 35.
Nd6 {[%clk 0:00:24.4]} 35... Rf6 {[%clk 0:00:11.5]} 36. Rexf6 {[%clk 0:00:20.8]}
36... Nxf6 {[%clk 0:00:11.6]} 37. Bxf4 {[%clk 0:00:21.2]} 37... Rd7 {[%clk
0:00:11.4]} 38. Nf5 {[%clk 0:00:20.9]} 38... Kh8 {[%clk 0:00:08.6]} 39. Be5
{[%clk 0:00:19.2]} 39... Ne8 {[%clk 0:00:08.1]} 40. Nxg7 {[%clk 0:00:17]} 40...
Nxg7 {[%clk 0:00:09]} 41. Be4 {[%clk 0:00:13]} 41... Rd1+ {[%clk 0:00:08.6]} 42.
Kh2 {[%clk 0:00:12.9]} 42... Rd7 {[%clk 0:00:09.2]} 43. f4 {[%clk 0:00:12.3]}
43... Qe8 {[%clk 0:00:08.9]} 44. Rh6+ {[%clk 0:00:09.2]} 44... Kg8 {[%clk
0:00:09.5]} 45. Bh7+ {[%clk 0:00:09.5]} 45... Kf8 {[%clk 0:00:08.7]} 46. Bg6
{[%clk 0:00:09.9]} 46... Qe6 {[%clk 0:00:07.2]} 47. Rh8+ {[%clk 0:00:06.1]}
47... Ke7 {[%clk 0:00:07.6]} 48. Be4 {[%clk 0:00:05.1]} 48... Nf5 {[%clk
0:00:07.2]} 49. Rxh5 {[%clk 0:00:04.1]} 49... Nd6 {[%clk 0:00:05.9]} 50. Bf3
{[%clk 0:00:04.5]} 50... Nf7 {[%clk 0:00:05.8]} 51. Bg4 {[%clk 0:00:04.9]} 51...
Qg6 {[%clk 0:00:04.5]} 52. f5 {[%clk 0:00:02.8]} 52... Qg8 {[%clk 0:00:04.1]}
53. f6+ {[%clk 0:00:02.9]} 53... Kd8 {[%clk 0:00:03.7]} 54. Bg3 {[%clk
0:00:03.1]} 54... Rd2 {[%clk 0:00:03.2]} 55. Rb5 {[%clk 0:00:03.6]} 55... Qg6
{[%clk 0:00:02.7]} 56. Rb8# {[%clk 0:00:03.8]} 1-0

[Event "*** Titled Tuesday Blitz"]
[Site "Chess.com"]
[Date "2020.04.28"]
[Round "2"]
[White "hedgehog280"]
[Black "Galileo22"]
[Result "1/2-1/2"]
[WhiteElo "2686"]
[BlackElo "2331"]
[TimeControl "180+1"]
[EndTime "10:19:02 PDT"]
[Termination "Game drawn by stalemate"]

1. c4 {[%clk 0:02:55.9]} 1... Nf6 {[%clk 0:02:56.9]} 2. Nc3 {[%clk 0:02:56.4]}
2... e6 {[%clk 0:02:57.3]} 3. e4 {[%clk 0:02:56.4]} 3... d5 {[%clk 0:02:56.6]}
4. e5 {[%clk 0:02:56.8]} 4... Ne4 {[%clk 0:02:54.7]} 5. cxd5 {[%clk 0:02:38.6]}
5... exd5 {[%clk 0:02:51.7]} 6. Nxe4 {[%clk 0:02:38]} 6... dxe4 {[%clk
0:02:52.6]} 7. Qa4+ {[%clk 0:02:38.4]} 7... Nc6 {[%clk 0:02:41.7]} 8. Qxe4
{[%clk 0:02:37.6]} 8... Qd4 {[%clk 0:02:38.5]} 9. Qxd4 {[%clk 0:02:24.8]} 9...
Nxd4 {[%clk 0:02:39.4]} 10. Bd3 {[%clk 0:02:25.2]} 10... Bc5 {[%clk 0:02:16.6]}
11. Ne2 {[%clk 0:02:12.5]} 11... Nc6 {[%clk 0:01:55.9]} 12. Bb5 {[%clk 0:02:08]}
12... Bd7 {[%clk 0:01:52.3]} 13. Bxc6 {[%clk 0:02:03.5]} 13... Bxc6 {[%clk
0:01:52]} 14. d4 {[%clk 0:02:04.2]} 14... Bb4+ {[%clk 0:01:48.1]} 15. Bd2 {[%clk
0:02:04.6]} 15... Bxd2+ {[%clk 0:01:43.6]} 16. Kxd2 {[%clk 0:02:04.8]} 16...
Bxg2 {[%clk 0:01:40.2]} 17. Rhg1 {[%clk 0:02:04.8]} 17... Be4 {[%clk 0:01:40.2]}
18. Rxg7 {[%clk 0:02:03.1]} 18... Bg6 {[%clk 0:01:40.1]} 19. Rc1 {[%clk
0:01:57.7]} 19... c6 {[%clk 0:01:35.9]} 20. e6 {[%clk 0:01:52]} 20... Kf8 {[%clk
0:01:34.4]} 21. Rxf7+ {[%clk 0:01:52.6]} 21... Bxf7 {[%clk 0:01:34.1]} 22. exf7
{[%clk 0:01:53.5]} 22... Kxf7 {[%clk 0:01:35]} 23. Rc5 {[%clk 0:01:51]} 23...
Rad8 {[%clk 0:01:32.3]} 24. b4 {[%clk 0:01:47.1]} 24... Rd5 {[%clk 0:01:23]} 25.
Rc3 {[%clk 0:01:42.6]} 25... a5 {[%clk 0:01:18.7]} 26. Rf3+ {[%clk 0:01:32.9]}
26... Ke7 {[%clk 0:01:17.9]} 27. a3 {[%clk 0:01:31.3]} 27... axb4 {[%clk
0:01:16.1]} 28. axb4 {[%clk 0:01:32.2]} 28... Ra8 {[%clk 0:01:14.7]} 29. Rh3
{[%clk 0:01:28.3]} 29... Ra2+ {[%clk 0:01:10.5]} 30. Kd3 {[%clk 0:01:24]} 30...
Ra3+ {[%clk 0:00:58.3]} 31. Nc3 {[%clk 0:01:24.1]} 31... h5 {[%clk 0:00:57.1]}
32. Kc2 {[%clk 0:01:14.3]} 32... Rxd4 {[%clk 0:00:51.4]} 33. Nd5+ {[%clk
0:01:14.6]} 33... cxd5 {[%clk 0:00:50.8]} 34. Rxa3 {[%clk 0:01:14.9]} 34... Rxb4
{[%clk 0:00:50.6]} 35. Kd3 {[%clk 0:01:10.8]} 35... Rh4 {[%clk 0:00:45.8]} 36.
Ra7 {[%clk 0:01:03.7]} 36... Rxh2 {[%clk 0:00:43]} 37. Rxb7+ {[%clk 0:01:02.8]}
37... Kd6 {[%clk 0:00:43]} 38. Ke2 {[%clk 0:00:58]} 38... Ke5 {[%clk 0:00:41.3]}
39. Re7+ {[%clk 0:00:56.3]} 39... Kd4 {[%clk 0:00:38.7]} 40. Re3 {[%clk
0:00:56.7]} 40... Rh1 {[%clk 0:00:32.2]} 41. Rd3+ {[%clk 0:00:55.5]} 41... Kc4
{[%clk 0:00:30]} 42. Ra3 {[%clk 0:00:54.3]} 42... h4 {[%clk 0:00:25.5]} 43. Ra4+
{[%clk 0:00:53]} 43... Kc3 {[%clk 0:00:23.7]} 44. Ra3+ {[%clk 0:00:52.1]} 44...
Kd4 {[%clk 0:00:23.6]} 45. Ra4+ {[%clk 0:00:51.2]} 45... Ke5 {[%clk 0:00:23.6]}
46. f4+ {[%clk 0:00:48.8]} 46... Kf5 {[%clk 0:00:22.8]} 47. Rd4 {[%clk
0:00:46.5]} 47... Ke6 {[%clk 0:00:21.6]} 48. Kf3 {[%clk 0:00:43.6]} 48... h3
{[%clk 0:00:19.2]} 49. Kg4 {[%clk 0:00:42.4]} 49... h2 {[%clk 0:00:11.3]} 50.
Kg3 {[%clk 0:00:42.8]} 50... Re1 {[%clk 0:00:10.7]} 51. Kxh2 {[%clk 0:00:38.4]}
51... Re4 {[%clk 0:00:11.2]} 52. Rd2 {[%clk 0:00:31.5]} 52... Rxf4 {[%clk
0:00:11.1]} 53. Kg3 {[%clk 0:00:32]} 53... Rf8 {[%clk 0:00:10.8]} 54. Re2+
{[%clk 0:00:29.7]} 54... Kd6 {[%clk 0:00:11]} 55. Re3 {[%clk 0:00:27.7]} 55...
d4 {[%clk 0:00:10.6]} 56. Rf3 {[%clk 0:00:23.7]} 56... Rxf3+ {[%clk 0:00:06.4]}
57. Kxf3 {[%clk 0:00:23.4]} 57... Kc5 {[%clk 0:00:05.2]} 58. Ke2 {[%clk
0:00:20.9]} 58... Kc4 {[%clk 0:00:04.8]} 59. Kd2 {[%clk 0:00:21.5]} 59... d3
{[%clk 0:00:04.9]} 60. Kd1 {[%clk 0:00:21.8]} 60... Kd4 {[%clk 0:00:03.2]} 61.
Kd2 {[%clk 0:00:21.8]} 61... Ke4 {[%clk 0:00:03.5]} 62. Kd1 {[%clk 0:00:22]}
62... Ke3 {[%clk 0:00:03.9]} 63. Ke1 {[%clk 0:00:22.1]} 63... d2+ {[%clk
0:00:03.4]} 64. Kd1 {[%clk 0:00:22.4]} 64... Kd3 {[%clk 0:00:04.3]} 1/2-1/2

[Event "*** Titled Tuesday Blitz"]
[Site "Chess.com"]
[Date "2020.04.28"]
[Round "2"]
[White "jlandaw"]
[Black "Muracle"]
[Result "0-1"]
[WhiteElo "2393"]
[BlackElo "2669"]
[TimeControl "180+1"]
[EndTime "10:19:03 PDT"]
[Termination "Muracle won on time"]

1. e4 {[%clk 0:03:00.9]} 1... e5 {[%clk 0:02:59.4]} 2. Nf3 {[%clk 0:03:00.6]}
2... Nc6 {[%clk 0:02:59.4]} 3. Bb5 {[%clk 0:03:00.6]} 3... a6 {[%clk 0:02:59.3]}
4. Ba4 {[%clk 0:03:00.7]} 4... Nf6 {[%clk 0:02:58.9]} 5. O-O {[%clk 0:03:00.8]}
5... d6 {[%clk 0:02:58.6]} 6. Re1 {[%clk 0:03:00.4]} 6... Be7 {[%clk 0:02:58.3]}
7. c3 {[%clk 0:02:55.3]} 7... O-O {[%clk 0:02:56.7]} 8. h3 {[%clk 0:02:53.1]}
8... b5 {[%clk 0:02:55.3]} 9. Bb3 {[%clk 0:02:52.4]} 9... Be6 {[%clk 0:02:53.8]}
10. d3 {[%clk 0:02:50.8]} 10... Qd7 {[%clk 0:02:45.1]} 11. Nbd2 {[%clk 0:02:50]}
11... Rfe8 {[%clk 0:02:41]} 12. Bc2 {[%clk 0:02:31.2]} 12... Bf8 {[%clk
0:02:39.9]} 13. d4 {[%clk 0:02:29.2]} 13... exd4 {[%clk 0:01:27.8]} 14. cxd4
{[%clk 0:02:30.1]} 14... d5 {[%clk 0:01:26.2]} 15. e5 {[%clk 0:02:20.6]} 15...
Nh5 {[%clk 0:01:13]} 16. Ng5 {[%clk 0:01:18.6]} 16... g6 {[%clk 0:01:12.4]} 17.
g4 {[%clk 0:00:30.9]} 17... Nf4 {[%clk 0:00:32.4]} 18. Nf1 {[%clk 0:00:29.9]}
18... Nxh3+ {[%clk 0:00:30.2]} 19. Nxh3 {[%clk 0:00:29.4]} 19... Bxg4 {[%clk
0:00:30.2]} 20. f3 {[%clk 0:00:19.4]} 20... Bxh3 {[%clk 0:00:29]} 21. Ng3 {[%clk
0:00:19.9]} 21... Bg7 {[%clk 0:00:26.4]} 22. Bg5 {[%clk 0:00:18.2]} 22... Ne7
{[%clk 0:00:20]} 23. Kh2 {[%clk 0:00:12.9]} 23... Bf5 {[%clk 0:00:19.7]} 24.
Nxf5 {[%clk 0:00:09.5]} 24... Nxf5 {[%clk 0:00:19.5]} 25. Qd2 {[%clk 0:00:09.3]}
25... c5 {[%clk 0:00:18.7]} 26. Bxf5 {[%clk 0:00:04.7]} 26... Qxf5 {[%clk
0:00:18.3]} 27. dxc5 {[%clk 0:00:05.2]} 27... Bxe5+ {[%clk 0:00:18.2]} 28. f4
{[%clk 0:00:05.7]} 28... Qxg5 {[%clk 0:00:18.5]} 29. Rxe5 {[%clk 0:00:04.1]}
29... Qh4+ {[%clk 0:00:18.7]} 30. Kg2 {[%clk 0:00:04.6]} 30... Rxe5 {[%clk
0:00:18.3]} 31. fxe5 {[%clk 0:00:05.5]} 31... Qe4+ {[%clk 0:00:17.8]} 32. Kg1
{[%clk 0:00:04.2]} 32... Qxe5 {[%clk 0:00:17.9]} 33. Re1 {[%clk 0:00:04.8]}
33... Qg3+ {[%clk 0:00:16.8]} 34. Kf1 {[%clk 0:00:04.3]} 34... Qf3+ {[%clk
0:00:12.8]} 35. Kg1 {[%clk 0:00:04.3]} 35... Rd8 {[%clk 0:00:10.1]} 36. Rc1
{[%clk 0:00:02.9]} 36... d4 {[%clk 0:00:10.2]} 37. c6 {[%clk 0:00:02.9]} 37...
Qe3+ {[%clk 0:00:09.9]} 38. Qxe3 {[%clk 0:00:02.9]} 38... dxe3 {[%clk
0:00:10.3]} 39. c7 {[%clk 0:00:03.5]} 39... Rc8 {[%clk 0:00:10.6]} 40. Kf1
{[%clk 0:00:04.1]} 40... Kf8 {[%clk 0:00:10.9]} 41. Ke2 {[%clk 0:00:04.7]} 41...
Ke7 {[%clk 0:00:11.4]} 42. Rc6 {[%clk 0:00:04.5]} 42... Kd7 {[%clk 0:00:11.5]}
43. Rxa6 {[%clk 0:00:04.9]} 43... Rxc7 {[%clk 0:00:11.4]} 44. Kxe3 {[%clk
0:00:04.7]} 44... h5 {[%clk 0:00:11.1]} 45. Rf6 {[%clk 0:00:04.1]} 45... Ke7
{[%clk 0:00:11]} 46. Rf2 {[%clk 0:00:04.2]} 46... f5 {[%clk 0:00:11]} 47. Kd4
{[%clk 0:00:04.6]} 47... Kf6 {[%clk 0:00:11.1]} 48. b3 {[%clk 0:00:04.8]} 48...
g5 {[%clk 0:00:11.3]} 49. a4 {[%clk 0:00:05.1]} 49... bxa4 {[%clk 0:00:11.2]}
50. bxa4 {[%clk 0:00:06]} 50... g4 {[%clk 0:00:11.3]} 51. a5 {[%clk 0:00:06]}
51... Ra7 {[%clk 0:00:10.7]} 52. Ra2 {[%clk 0:00:05.7]} 52... h4 {[%clk
0:00:11]} 53. Ke3 {[%clk 0:00:05.8]} 53... Kg5 {[%clk 0:00:10.8]} 54. a6 {[%clk
0:00:05.4]} 54... h3 {[%clk 0:00:09.8]} 55. Kf2 {[%clk 0:00:05.1]} 55... f4
{[%clk 0:00:09.7]} 56. Ra4 {[%clk 0:00:04.2]} 56... h2 {[%clk 0:00:08]} 57. Kg2
{[%clk 0:00:04.3]} 57... g3 {[%clk 0:00:08.1]} 58. Ra2 {[%clk 0:00:03]} 58...
f3+ {[%clk 0:00:06.9]} 59. Kh1 {[%clk 0:00:03.4]} 59... Rh7 {[%clk 0:00:02.9]}
0-1